bitfinex/quotes_BTCUSD_20251117
["timestamp","ask_amount","ask_price","bid_price","bid_amount"]
[1763415077373,0.38506731,91954.0,91939.0,5.718e-05]
[1763415077986,0.38506731,91954.0,91953.0,0.04312]
[1763415078215,0.38506731,91954.0,91940.0,0.03764]
[1763415080489,0.38506731,91954.0,91945.0,0.00121797]
[1763415080702,0.38506731,91954.0,91953.0,0.019]
[1763415080907,0.60256736,91954.0,91953.0,0.019]
[1763415081110,0.38506731,91954.0,91939.0,5.718e-05]
[1763415081525,0.21750478,91952.0,91939.0,5.718e-05]
[1763415081750,0.38506731,91949.0,91939.0,5.718e-05]
[1763415082767,0.01065651,91955.0,91939.0,5.718e-05]
[1763415082768,0.38506731,91951.0,91939.0,5.718e-05]
[1763415083009,0.38506731,91954.0,91939.0,5.718e-05]
[1763415083417,0.38506731,91954.0,91939.0,0.03769718]
[1763415084223,0.38506731,91952.0,91939.0,0.03769718]
[1763415084433,0.38506731,91950.0,91945.0,0.10859296]
[1763415084646,0.38506731,91948.0,91946.0,0.01305113]
[1763415084844,0.97215366,91990.0,91946.0,0.01305113]
[1763415084845,0.40537661,91947.0,91946.0,0.05069113]
[1763415085045,0.40537661,91947.0,91946.0,0.03764]
[1763415085248,0.40537661,91947.0,91946.0,0.06176]
[1763415085452,0.40537661,91947.0,91946.0,0.02412]
[1763415085675,0.40537661,91947.0,91945.0,0.001]
[1763415085875,0.01051616,91964.0,91945.0,0.001]
[1763415085876,0.40537661,91946.0,91945.0,0.001]
[1763415086071,0.40537661,91946.0,91939.0,0.03769718]
[1763415086271,0.2279941,91964.0,91939.0,0.03769718]
[1763415086272,0.38506731,91944.0,91939.0,0.03769718]
[1763415086514,0.97215603,91970.0,91943.0,0.02412]
[1763415086515,0.38506731,91963.0,91943.0,0.02412]
[1763415086773,0.38506731,91960.0,91944.0,0.02412]
[1763415086935,0.38506731,91958.0,91944.0,0.02412]
[1763415087130,0.38506731,91956.0,91944.0,0.02412]
[1763415087335,0.01087311,91970.0,91944.0,0.02412]
[1763415087336,0.38506731,91954.0,91944.0,0.02412]
[1763415087573,0.38506731,91952.0,91944.0,0.02412]
[1763415087807,0.02033235,91951.0,91944.0,0.02412]
[1763415088020,0.40539966,91950.0,91944.0,0.06176]
[1763415088232,0.01087311,91970.0,91945.0,0.03764]
[1763415088233,0.38506731,91948.0,91945.0,0.03764]
[1763415088414,0.14479231,91946.0,91939.0,0.00105718]
[1763415088645,0.0104305,91964.0,91939.0,0.00105718]
[1763415088646,0.38506731,91944.0,91939.0,5.718e-05]
[1763415088797,0.21747838,91964.0,91939.0,5.718e-05]
[1763415088798,0.38506731,91942.0,91939.0,5.718e-05]
[1763415088999,0.38506731,91940.0,91939.0,5.718e-05]
[1763415089379,0.38506731,91959.0,91939.0,0.06181718]
[1763415089598,0.38506731,91956.0,91939.0,0.00105718]
[1763415089800,0.38506731,91949.0,91939.0,0.00105718]
[1763415090003,0.38506731,91947.0,91939.0,0.00105718]
[1763415090199,0.38506731,91945.0,91939.0,0.00105718]
[1763415090482,0.38506731,91943.0,91939.0,0.00105718]
[1763415090699,0.38506731,91941.0,91940.0,0.03587]
[1763415090843,0.4054082,91941.0,91940.0,0.03587]
[1763415091047,0.4054082,91941.0,91940.0,0.05922]
[1763415091255,0.38506731,91963.0,91940.0,0.05922]
[1763415091463,0.38506731,91961.0,91941.0,0.14446296]
[1763415091676,0.38506731,91959.0,91940.0,0.02335]
[1763415091874,0.38506731,91959.0,91940.0,0.02435]
[1763415091875,0.38506731,91957.0,91940.0,0.02435]
[1763415092086,0.38506731,91955.0,91940.0,0.02435]
[1763415092292,0.38506731,91953.0,91941.0,0.03587]
[1763415092495,0.38506731,91951.0,91941.0,0.03587]
[1763415092710,0.38506731,91949.0,91941.0,0.03587]
[1763415092910,0.38506731,91947.0,91942.0,0.10859296]
[1763415093147,0.38506731,91945.0,91942.0,0.10859296]
[1763415093353,0.38506731,91963.0,91942.0,0.14446296]
[1763415093557,0.38506731,91961.0,91944.0,0.02459695]
[1763415093931,0.38506731,91959.0,91944.0,0.05922]
[1763415094134,0.38506731,91957.0,91944.0,0.05922]
[1763415094336,0.38506731,91955.0,91944.0,0.05922]
[1763415094491,0.02036553,91954.0,91944.0,0.02335]
[1763415094704,0.38506731,91952.0,91944.0,0.02335]
[1763415094878,0.02036553,91951.0,91944.0,0.02335]
[1763415095077,0.38506731,91949.0,91944.0,0.02435]
[1763415095400,0.38506731,91947.0,91944.0,0.02435]
[1763415095743,0.38506731,91945.0,91944.0,0.02335]
[1763415095942,0.40544074,91945.0,91944.0,0.001]
[1763415096142,0.40544074,91945.0,91944.0,0.06022]
[1763415096342,0.38506731,91963.0,91944.0,0.06022]
[1763415096585,0.02037753,91962.0,91944.0,0.02435]
[1763415096782,0.01076075,91964.0,91945.0,0.03587]
[1763415096783,0.40544484,91961.0,91945.0,0.03587]
[1763415096966,0.38506731,91959.0,91945.0,0.03587]
[1763415097221,0.38506731,91957.0,91946.0,0.01305113]
[1763415097423,0.02037753,91956.0,91946.0,0.01305113]
[1763415097621,0.97249798,91980.0,91947.0,0.03587]
[1763415097622,0.38506731,91954.0,91947.0,0.03587]
[1763415097834,0.38506731,91954.0,91948.0,0.01305085]
[1763415098050,0.38506731,91964.0,91953.0,0.04234]
[1763415098224,0.03275518,91994.0,91953.0,0.04234]
[1763415098225,0.38506731,91974.0,91964.0,0.04234]
[1763415098506,0.02036089,91973.0,91965.0,0.03587]
[1763415098706,0.4054282,91972.0,91965.0,0.03587]
[1763415098911,0.4054282,91971.0,91965.0,0.03587]
[1763415099114,0.01058111,91978.0,91965.0,0.03587]
[1763415099115,0.38506731,91969.0,91965.0,0.03587]
[1763415099528,0.38506731,91975.0,91968.0,0.02335]
[1763415099744,0.97286638,92000.0,91968.0,0.02335]
[1763415099745,0.38506731,91973.0,91968.0,0.02335]
[1763415099953,0.02035644,91972.0,91964.0,0.01899]
[1763415100162,0.40542371,91971.0,91964.0,0.01899]
[1763415100355,0.38506731,91975.0,91964.0,0.01899]
[1763415100577,0.02035551,91974.0,91965.0,0.04891844]
[1763415100774,0.38506731,91972.0,91965.0,0.04891844]
[1763415100986,0.38506731,91978.0,91965.0,0.01304844]
[1763415101221,0.38506731,91978.0,91964.0,0.01904718]
[1763415101222,0.02035557,91977.0,91971.0,0.02335]
[1763415101410,0.38506731,91976.0,91971.0,0.02335]
[1763415101534,0.38506731,91974.0,91966.0,0.03587]
[1763415101746,0.21742322,91987.0,91964.0,0.01904718]
[1763415101747,0.02035567,91973.0,91964.0,5.718e-05]
[1763415101967,0.38506731,91971.0,91964.0,5.718e-05]
[1763415102179,0.38506731,91969.0,91964.0,5.718e-05]
[1763415102381,0.2174344,91982.0,91964.0,5.718e-05]
[1763415102382,0.38506731,91967.0,91964.0,5.718e-05]
[1763415102610,0.38506731,91978.0,91964.0,5.718e-05]
[1763415102820,0.38506731,91976.0,91964.0,5.718e-05]
[1763415103026,0.38506731,91974.0,91964.0,5.718e-05]
[1763415103368,0.38506731,91972.0,91964.0,5.718e-05]
[1763415103561,0.02036314,91971.0,91964.0,5.718e-05]
[1763415103760,0.38506731,91970.0,91964.0,5.718e-05]
[1763415103990,0.38506731,91968.0,91964.0,5.718e-05]
[1763415104162,0.02036314,91967.0,91964.0,5.718e-05]
[1763415104362,0.38506731,91966.0,91964.0,5.718e-05]
[1763415104692,0.40543045,91965.0,91964.0,5.718e-05]
[1763415105167,0.40543045,91965.0,91964.0,0.02340718]
[1763415105518,0.40543045,91965.0,91964.0,0.02407451]
[1763415105760,0.40543045,91965.0,91964.0,0.02507451]
[1763415105966,0.40543045,91965.0,91964.0,0.06094451]
[1763415106172,0.40545001,91965.0,91964.0,0.06094451]
[1763415106814,0.40544096,91965.0,91964.0,0.06094451]
[1763415107020,0.38506731,91979.0,91964.0,0.06094451]
[1763415107219,0.38506731,91977.0,91964.0,0.06027718]
[1763415107430,0.38506731,91975.0,91964.0,0.06027718]
[1763415107670,0.38506731,91973.0,91964.0,0.06027718]
[1763415107876,0.38506731,91971.0,91964.0,0.05927718]
[1763415108047,0.02037224,91970.0,91964.0,0.05927718]
[1763415108284,0.38506731,91968.0,91964.0,0.05927718]
[1763415108572,0.38506731,91966.0,91964.0,0.05927718]
[1763415108766,0.38506731,91982.0,91964.0,0.03592718]
[1763415108976,2.0,91989.0,91964.0,0.03592718]
[1763415108977,0.38506731,91980.0,91965.0,0.02335]
[1763415109175,0.38506731,91978.0,91964.0,5.718e-05]
[1763415109378,0.38506731,91976.0,91964.0,5.718e-05]
[1763415109555,1.34669337,91974.0,91964.0,5.718e-05]
[1763415109741,0.38506731,91971.0,91964.0,5.718e-05]
[1763415109940,0.21747188,91966.0,91964.0,5.718e-05]
[1763415110177,0.40543194,91965.0,91964.0,5.718e-05]
[1763415110963,0.40543194,91965.0,91964.0,0.02340718]
[1763415113422,0.40543194,91965.0,91964.0,0.05927718]
[1763415113928,0.40543194,91965.0,91964.0,0.05994451]
[1763415114130,0.38506731,91965.0,91964.0,0.05994451]
[1763415114353,0.38506731,91982.0,91964.0,0.05994451]
[1763415114594,0.38506731,91980.0,91964.0,0.05927718]
[1763415114774,0.38506731,91978.0,91964.0,0.05927718]
[1763415114973,0.38506731,91976.0,91964.0,0.05927718]
[1763415115180,0.38506731,91974.0,91964.0,0.05927718]
[1763415115381,0.38506731,91972.0,91964.0,0.05927718]
[1763415115713,0.38506731,91970.0,91964.0,0.05927718]
[1763415115938,0.38506731,91968.0,91964.0,0.05927718]
[1763415116275,0.38506731,91982.0,91964.0,0.05927718]
[1763415116481,0.38506731,91980.0,91964.0,0.05927718]
[1763415116679,0.38506731,91978.0,91964.0,0.05927718]
[1763415116890,1.18991188,91990.0,91964.0,0.05927718]
[1763415116891,0.38506731,91976.0,91964.0,0.05927718]
[1763415117097,0.38506731,91974.0,91964.0,0.05927718]
[1763415117314,0.38506731,91972.0,91964.0,0.06027718]
[1763415117565,0.38506731,91970.0,91964.0,0.06027718]
[1763415117758,0.02036308,91969.0,91964.0,0.02340718]
[1763415117957,0.38506731,91982.0,91964.0,0.02340718]
[1763415118123,0.38506731,91980.0,91964.0,0.02340718]
[1763415118328,0.38506731,91978.0,91964.0,0.02340718]
[1763415118524,0.38506731,91976.0,91964.0,0.02340718]
[1763415118725,0.38506731,91974.0,91964.0,0.02340718]
[1763415118937,0.38506731,91972.0,91964.0,0.02440718]
[1763415119144,0.38506731,91970.0,91964.0,0.02440718]
[1763415119445,0.38506731,91968.0,91964.0,0.02440718]
[1763415119655,0.38506731,91966.0,91964.0,0.02440718]
[1763415119864,0.38506731,91978.0,91964.0,0.02440718]
[1763415120084,0.38506731,91976.0,91964.0,0.02440718]
[1763415120290,0.38506731,91974.0,91964.0,5.718e-05]
[1763415120489,0.96162606,91980.0,91964.0,5.718e-05]
[1763415120490,0.21746659,91969.0,91964.0,5.718e-05]
[1763415120745,0.38506731,91967.0,91964.0,5.718e-05]
[1763415121019,0.38506731,91965.0,91964.0,5.718e-05]
[1763415121213,0.38501013,91961.0,91944.0,0.02922414]
[1763415121434,0.32616867,91977.0,91944.0,0.00013174]
[1763415121435,0.38501013,91959.0,91944.0,0.00013174]
[1763415121640,0.38501013,91957.0,91944.0,0.00013174]
[1763415121858,0.38501013,91955.0,91944.0,0.00013174]
[1763415122070,0.40536368,91954.0,91944.0,0.00013174]
[1763415122276,0.38501013,91952.0,91944.0,0.00013174]
[1763415122505,0.38501013,91950.0,91944.0,0.00013174]
[1763415122723,0.38501013,91948.0,91944.0,0.00013174]
[1763415122940,0.40536368,91947.0,91945.0,0.01771]
[1763415123141,0.38501013,91946.0,91945.0,0.01771]
[1763415123584,0.38501013,91946.0,91945.0,0.07329]
[1763415123785,0.38501013,91946.0,91945.0,0.04046]
[1763415124925,0.38501013,91946.0,91945.0,0.07429]
[1763415127208,0.38501013,91946.0,91945.0,0.11353405]
[1763415127411,0.38501013,91946.0,91945.0,0.11475202]
[1763415127741,0.38501013,91946.0,91945.0,0.07350797]
[1763415128071,0.38501013,91946.0,91945.0,0.07450797]
[1763415128526,0.21722919,91946.0,91945.0,0.07450797]
[1763415128898,0.21722919,91946.0,91945.0,0.24596094]
[1763415129302,0.21722919,91946.0,91945.0,0.22240797]
[1763415134030,0.02580962,91977.0,91945.0,0.22240797]
[1763415134234,0.02580962,91975.0,91962.0,0.10859296]
[1763415134461,0.02580962,91980.0,91974.0,0.04046]
[1763415134680,0.02580962,91978.0,91975.0,0.02275]
[1763415134934,0.02580962,91978.0,91974.0,0.01771]
[1763415134935,0.02580962,91987.0,91974.0,0.01771]
[1763415135139,0.02580962,91985.0,91982.0,0.01771]
[1763415135381,0.01117218,92000.0,91982.0,0.01771]
[1763415135382,0.02580962,91995.0,91982.0,0.01771]
[1763415135581,0.01117218,92000.0,91982.0,0.01771]
[1763415135582,0.02580962,91993.0,91985.0,0.02275]
[1763415135755,0.01117218,92000.0,91983.0,0.04676495]
[1763415135756,0.02580962,91991.0,91986.0,0.03283]
[1763415135960,0.01117218,92000.0,91982.0,0.01784174]
[1763415135961,0.02580962,91995.0,91982.0,0.01784174]
[1763415136188,2.0,91999.0,91982.0,0.00013174]
[1763415136189,0.02580962,91991.0,91982.0,0.00013174]
[1763415136391,0.02580962,91989.0,91982.0,0.00013174]
[1763415136594,0.02580962,91987.0,91982.0,0.00013174]
[1763415136796,0.02580962,91985.0,91982.0,0.00013174]
[1763415136996,0.02580962,91984.0,91983.0,0.01771]
[1763415137263,0.02580962,91995.0,91983.0,0.01771]
[1763415137395,0.0203457,91994.0,91983.0,0.04046]
[1763415137595,2.0,91998.0,91983.0,0.04046]
[1763415137596,0.54341874,91999.0,91983.0,0.04046]
[1763415137794,2.0,91998.0,91982.0,0.00013174]
[1763415138224,2.0,92000.0,91983.0,0.01676]
[1763415138597,2.0,92000.0,91984.0,0.03243]
[1763415138881,2.0,92000.0,91999.0,0.03854]
[1763415139086,0.01621173,92001.0,91999.0,0.03854]
[1763415139087,0.00570011,92001.0,91999.0,0.03854]
[1763415139693,0.00570011,92001.0,92000.0,0.028877]
[1763415139913,0.00570011,92001.0,92000.0,0.061307]
[1763415140286,0.00570011,92001.0,92000.0,0.07435047]
[1763415141067,0.00570011,92001.0,92000.0,0.061307]
[1763415141268,2.0,92037.0,92000.0,0.07435047]
[1763415141471,0.00569822,92016.0,92003.0,0.10859296]
[1763415141867,2.0,92042.0,92015.0,0.02178]
[1763415142073,0.00569822,92025.0,92020.0,0.76507845]
[1763415142506,2.0,92047.0,92024.0,0.03854]
[1763415142845,0.00569822,92038.0,92036.0,0.02178]
[1763415143057,0.0061367,92038.0,92036.0,0.02178]
[1763415143240,0.0061367,92038.0,92032.0,0.01676]
[1763415144922,0.0061367,92038.0,92037.0,0.02178]
[1763415145125,0.0061367,92038.0,92032.0,0.01676]
[1763415145323,0.0061367,92038.0,92037.0,0.02178]
[1763415146981,0.0061367,92038.0,92037.0,0.05421]
[1763415147219,0.0061367,92038.0,92037.0,0.05384016]
[1763415147754,0.0061367,92038.0,92037.0,0.06220406]
[1763415148148,0.0061367,92038.0,92037.0,0.05384016]
[1763415149671,0.0061367,92038.0,92037.0,0.05484016]
[1763415150948,0.0061367,92038.0,92037.0,0.05584016]
[1763415151353,0.0004,92050.0,92049.0,0.10859296]
[1763415151596,0.0004,92050.0,92049.0,0.13093296]
[1763415151811,0.0004,92050.0,92049.0,0.02234]
[1763415152030,0.0004,92050.0,92037.0,0.001]
[1763415152243,0.2172803,92047.0,92037.0,0.001]
[1763415152452,0.0004,92050.0,92037.0,0.001]
[1763415152696,0.21728832,92044.0,92037.0,0.001]
[1763415152913,0.323,92044.0,92037.0,0.001]
[1763415153323,0.0004,92050.0,92024.0,0.05162]
[1763415153566,0.0004,92050.0,92024.0,0.01676]
[1763415153567,2.02015131,92049.0,92024.0,0.01676]
[1763415153791,0.04341874,92039.0,92024.0,0.00043848]
[1763415154017,0.21733167,92026.0,92024.0,0.00043848]
[1763415154367,0.76507845,92034.0,92024.0,0.00043848]
[1763415154571,0.21732841,92027.0,92024.0,0.00043848]
[1763415154780,0.21733144,92026.0,92024.0,0.00043848]
[1763415154941,0.21732841,92027.0,92024.0,0.00043848]
[1763415155143,0.02014882,92026.0,92024.0,0.00043848]
[1763415155347,0.02015819,92025.0,92024.0,0.00043848]
[1763415155744,2.0,92033.0,92024.0,0.00043848]
[1763415155966,2.0,92031.0,92024.0,0.00043848]
[1763415156172,2.0,92029.0,92024.0,0.00043848]
[1763415156393,0.001,92034.0,92024.0,0.00043848]
[1763415156394,0.02016031,92028.0,92024.0,0.00043848]
[1763415156593,0.001,92034.0,92024.0,0.00043848]
[1763415156780,0.02017072,92033.0,92024.0,0.00043848]
[1763415156982,0.04341874,92044.0,92024.0,0.00043848]
[1763415157164,0.04341874,92040.0,92024.0,0.00043848]
[1763415157369,2.0,92038.0,92024.0,0.00043848]
[1763415157577,0.04341874,92049.0,92024.0,0.00043848]
[1763415157578,2.0,92036.0,92024.0,0.00043848]
[1763415157787,0.02017063,92035.0,92025.0,0.03486]
[1763415157987,0.02017063,92034.0,92025.0,0.03486]
[1763415158189,0.02017063,92033.0,92025.0,0.03486]
[1763415158571,0.02017063,92032.0,92024.0,0.00043848]
[1763415158823,0.02017063,92031.0,92024.0,0.00043848]
[1763415158985,0.02017063,92045.0,92024.0,0.00043848]
[1763415159188,2.0,92043.0,92024.0,0.00043848]
[1763415159421,2.0,92041.0,92024.0,0.00043848]
[1763415159610,2.0,92039.0,92024.0,0.00043848]
[1763415159871,2.0,92037.0,92024.0,0.00043848]
[1763415160116,0.02017063,92036.0,92024.0,0.00043848]
[1763415160288,0.02017063,92035.0,92024.0,0.00043848]
[1763415160490,0.98275282,92050.0,92025.0,0.03486]
[1763415160491,0.02017063,92034.0,92025.0,0.03486]
[1763415160692,0.02017063,92033.0,92025.0,0.03486]
[1763415160893,2.0,92049.0,92032.0,0.03865]
[1763415161091,2.0,92047.0,92032.0,0.03865]
[1763415161329,0.03273002,92049.0,92032.0,0.03865]
[1763415161330,2.0,92045.0,92033.0,0.03486]
[1763415161475,0.0201962,92044.0,92033.0,0.03486]
[1763415161681,0.0201962,92043.0,92033.0,0.03486]
[1763415161882,0.0201962,92042.0,92033.0,0.03486]
[1763415162084,0.0201962,92041.0,92033.0,0.03486]
[1763415162436,0.0201962,92040.0,92033.0,0.03486]
[1763415162645,0.0201962,92039.0,92033.0,0.03486]
[1763415162967,2.0,92049.0,92033.0,0.03486]
[1763415163102,2.0,92047.0,92038.0,0.02234]
[1763415163303,0.02021498,92046.0,92038.0,0.02234]
[1763415163504,0.02021498,92045.0,92038.0,0.02234]
[1763415163817,0.02021498,92044.0,92038.0,0.02234]
[1763415164028,0.02021498,92043.0,92039.0,0.03486]
[1763415164219,0.02021498,92042.0,92039.0,0.03486]
[1763415164422,0.0004,92050.0,92041.0,0.02234]
[1763415164606,0.0004,92050.0,92049.0,0.02234]
[1763415164806,0.02064215,92050.0,92049.0,0.02234]
[1763415165009,0.02064215,92050.0,92049.0,0.0572]
[1763415168537,0.02064215,92050.0,92049.0,0.08067008]
[1763415169813,0.02064215,92050.0,92049.0,0.09370661]
[1763415170041,0.02064215,92050.0,92049.0,0.11447989]
[1763415170488,0.02070009,92050.0,92049.0,0.11447989]
[1763415170697,0.02070009,92050.0,92049.0,0.10244336]
[1763415170906,0.02070009,92050.0,92049.0,0.09570661]
[1763415171130,0.0004,92050.0,92049.0,0.09370661]
[1763415171372,0.0004,92050.0,92049.0,0.09470661]
[1763415171658,0.0004,92050.0,92049.0,0.08267008]
[1763415171857,0.02069893,92050.0,92049.0,0.08267008]
[1763415173350,0.02069893,92050.0,92049.0,0.08067008]
[1763415173562,0.02069893,92050.0,92049.0,0.08267008]
[1763415173945,0.02069893,92050.0,92049.0,0.08167008]
[1763415174366,0.02069893,92050.0,92049.0,0.08267008]
[1763415176882,0.02069893,92050.0,92049.0,0.11199906]
[1763415177181,0.01272114,92077.0,92050.0,0.03486]
[1763415177357,0.02069893,92067.0,92060.0,0.02184]
[1763415177557,0.02069893,92067.0,92059.0,0.02234]
[1763415177780,2.0,92081.0,92060.0,0.01631]
[1763415177926,0.02069893,92076.0,92061.0,0.02346096]
[1763415178124,0.02069893,92076.0,92062.0,0.02346096]
[1763415178359,0.02069893,92076.0,92060.0,0.01631]
[1763415178565,0.23804291,92076.0,92061.0,0.02345831]
[1763415178763,0.02083047,92076.0,92060.0,0.01631]
[1763415178964,0.02083047,92076.0,92061.0,0.02345831]
[1763415179185,0.02083047,92076.0,92060.0,0.01631]
[1763415179384,0.02083047,92076.0,92061.0,0.03486]
[1763415179610,0.02083047,92076.0,92070.0,0.01631]
[1763415179986,0.02083047,92076.0,92075.0,0.01656]
[1763415180343,0.02083047,92076.0,92075.0,0.03697]
[1763415180344,0.00013154,92076.0,92075.0,0.03697]
[1763415180566,0.00013154,92076.0,92075.0,0.06901]
[1763415181062,0.00013154,92076.0,92071.0,0.01656]
[1763415181701,0.00013154,92076.0,92064.0,0.01656]
[1763415182306,0.00013154,92076.0,92064.0,0.0486]
[1763415183631,0.00013154,92076.0,92060.0,0.01631]
[1763415183632,0.21721422,92075.0,92060.0,0.01631]
[1763415183852,0.21721422,92075.0,92048.0,0.04563898]
[1763415183853,0.76507845,92070.0,92048.0,0.04563898]
[1763415184088,0.76507845,92063.0,92049.0,0.02344778]
[1763415184305,0.21725162,92060.0,92050.0,0.02344778]
[1763415184507,0.76507845,92063.0,92025.0,0.08031528]
[1763415184508,0.04341874,92069.0,92041.0,0.01656]
[1763415184720,0.04341874,92065.0,92042.0,0.02345653]
[1763415184949,0.21723074,92068.0,92043.0,0.02345653]
[1763415184950,2.0,92064.0,92043.0,0.02345653]
[1763415185148,0.04341874,92065.0,92044.0,0.02345653]
[1763415185348,2.0,92064.0,92045.0,0.02345653]
[1763415185576,0.04341874,92065.0,92046.0,0.02345653]
[1763415185577,0.21726338,92055.0,92046.0,0.02345653]
[1763415185792,2.0,92059.0,92033.0,0.01656]
[1763415186005,0.21726636,92053.0,92034.0,0.02346856]
[1763415186212,0.03944858,92063.0,92035.0,0.02346856]
[1763415186213,2.0,92059.0,92035.0,0.02346856]
[1763415186418,2.0,92059.0,92033.0,0.01656]
[1763415186419,0.21727214,92051.0,92036.0,0.02346856]
[1763415186634,0.21725966,92056.0,92037.0,0.02346856]
[1763415186860,0.2172626,92055.0,92038.0,0.02346856]
[1763415187075,0.21726637,92053.0,92039.0,0.02346856]
[1763415187280,0.21727082,92052.0,92033.0,0.01656]
[1763415187488,0.21727312,92051.0,92034.0,0.02348454]
[1763415187692,0.21727017,92052.0,92035.0,0.02348454]
[1763415187884,0.95969655,92060.0,92036.0,0.02348454]
[1763415188095,0.21725924,92056.0,92037.0,0.02348454]
[1763415188310,0.21728597,92045.0,92038.0,0.02348454]
[1763415188494,0.21728597,92045.0,91990.0,0.01999998]
[1763415188495,2.0,92048.0,92026.0,0.02932066]
[1763415188635,0.05428122,92060.0,92019.0,0.01656]
[1763415188636,0.04341874,92056.0,92027.0,0.05553377]
[1763415188834,0.97903505,92060.0,92027.0,0.05553377]
[1763415188835,0.04341874,92049.0,92028.0,0.02349377]
[1763415189114,2.0,92047.0,92029.0,0.02349377]
[1763415189251,0.02033877,92046.0,92030.0,0.02349377]
[1763415189456,2.0,92044.0,92031.0,0.02349377]
[1763415189683,0.02033877,92043.0,92032.0,0.02349377]
[1763415189990,0.02033877,92042.0,92033.0,0.02349377]
[1763415190190,0.02033877,92041.0,92032.0,0.03204]
[1763415190428,0.02033877,92040.0,92033.0,0.02349992]
[1763415190602,0.02033877,92039.0,92031.0,0.01656]
[1763415190808,0.03204,92045.0,92030.0,0.00013174]
[1763415190809,0.02033877,92038.0,92030.0,0.00013174]
[1763415191028,0.02033877,92037.0,92031.0,0.05554074]
[1763415191240,0.02033877,92036.0,92032.0,0.02350074]
[1763415191413,0.02033877,92035.0,92033.0,0.02350074]
[1763415191618,0.02033877,92034.0,92031.0,0.03204]
[1763415191831,0.02033877,92033.0,92032.0,0.02349941]
[1763415192278,0.02033877,92044.0,92032.0,0.02349941]
[1763415192446,0.21728974,92043.0,92030.0,0.00013174]
[1763415192647,0.02033877,92042.0,92031.0,0.02349742]
[1763415192847,0.02033877,92041.0,92032.0,0.02349742]
[1763415193072,0.02033877,92040.0,92032.0,0.001]
[1763415193286,0.02033877,92039.0,92032.0,0.001]
[1763415193500,0.02033877,92038.0,92030.0,0.00013174]
[1763415193712,0.02033877,92037.0,92031.0,0.02349489]
[1763415193962,0.02033877,92036.0,92030.0,0.00013174]
[1763415194160,0.02001283,92035.0,92031.0,0.0234947]
[1763415194362,2.0,92051.0,92030.0,0.00013174]
[1763415194567,0.03204,92042.0,92031.0,0.0234924]
[1763415194793,0.03204,92042.0,92030.0,0.00013174]
[1763415195004,0.03204,92042.0,92031.0,0.02349225]
[1763415195236,0.03204,92042.0,92030.0,0.00013174]
[1763415195497,0.03204,92042.0,92031.0,0.02348908]
[1763415195729,0.03204,92042.0,92030.0,0.00013174]
[1763415195943,0.03204,92042.0,92031.0,0.02348896]
[1763415196151,0.21724496,92062.0,92041.0,0.03697]
[1763415196357,2.0,92065.0,92041.0,0.03697]
[1763415196562,1.82130251,92052.0,92041.0,0.03697]
[1763415196969,0.03272595,92053.0,92051.0,0.01656]
[1763415197174,0.03272595,92053.0,92052.0,0.02041]
[1763415197377,0.21723218,92068.0,92052.0,0.02041]
[1763415197724,2.0,92068.0,92051.0,0.01656]
[1763415197859,0.21724161,92064.0,92051.0,0.01656]
[1763415198038,2.0,92068.0,92051.0,0.01656]
[1763415198456,2.0,92064.0,92051.0,0.01656]
[1763415199304,0.03272378,92069.0,92051.0,0.01656]
[1763415199305,2.0,92067.0,92051.0,0.01656]
[1763415199560,2.0,92068.0,92051.0,0.01656]
[1763415199722,2.2172331,92068.0,92046.0,0.01623]
[1763415199919,0.21724193,92064.0,92046.0,0.022533]
[1763415200121,2.0,92066.0,92046.0,0.022533]
[1763415200503,0.21724091,92064.0,92046.0,0.01623]
[1763415200701,2.0,92064.0,92046.0,0.01623]
[1763415201100,2.0,92066.0,92046.0,0.01623]
[1763415201415,0.03272378,92063.0,92046.0,0.01623]
[1763415202825,0.03272378,92063.0,92062.0,0.01623]
[1763415203056,0.2172037,92080.0,92062.0,0.03802]
[1763415203229,2.0,92080.0,92062.0,0.03802]
[1763415203454,2.0,92075.0,92062.0,0.03802]
[1763415203853,2.0,92075.0,92063.0,0.006826]
[1763415204058,2.0,92074.0,92063.0,0.006826]
[1763415204220,2.0,92074.0,92062.0,0.01623]
[1763415204723,2.0,92074.0,92062.0,0.04647]
[1763415205290,2.0,92074.0,92046.0,0.01623]
[1763415205492,0.21722817,92070.0,92047.0,0.02348814]
[1763415205692,0.2172331,92067.0,92048.0,0.02348814]
[1763415205837,2.0,92067.0,92049.0,0.02348814]
[1763415206032,0.00013154,92075.0,92050.0,0.02348814]
[1763415206033,0.02030119,92066.0,92050.0,0.02348814]
[1763415206232,0.02030119,92066.0,92046.0,0.01623]
[1763415206233,0.02030119,92065.0,92051.0,0.02348814]
[1763415206518,0.21722813,92070.0,92046.0,0.01623]
[1763415206519,0.02030119,92064.0,92046.0,0.01623]
[1763415206651,0.02030119,92063.0,92047.0,0.02348881]
[1763415206852,0.02030119,92062.0,92048.0,0.02348881]
[1763415207055,0.03024,92065.0,92049.0,0.02348881]
[1763415207056,0.00569822,92063.0,92049.0,0.02348881]
[1763415207291,2.0,92061.0,92042.0,0.03024]
[1763415207603,2.0,92059.0,92043.0,0.02349094]
[1763415207804,0.02030409,92058.0,92044.0,0.02349094]
[1763415208043,0.02030409,92057.0,92045.0,0.02349094]
[1763415208256,0.02030879,92056.0,92043.0,0.03024]
[1763415208469,0.03024,92058.0,92044.0,0.02349387]
[1763415208677,0.06372844,92057.0,92028.0,0.02935992]
[1763415208880,2.0203097,92056.0,92029.0,0.02349625]
[1763415209084,0.54341874,92057.0,92030.0,0.02349625]
[1763415209085,0.0203097,92055.0,92030.0,0.02349625]
[1763415209236,0.21728508,92045.0,92031.0,0.02349625]
[1763415209451,0.21728508,92045.0,92027.0,0.01656]
[1763415209452,0.0203097,92044.0,92032.0,0.02349625]
[1763415209789,0.21727,92052.0,92033.0,0.02349625]
[1763415209938,0.02030167,92051.0,92034.0,0.02349625]
[1763415210120,0.23757618,92050.0,92027.0,0.01656]
[1763415210321,0.1506654,92049.0,92028.0,0.03116049]
[1763415210524,0.02029639,92048.0,92029.0,0.0234995]
[1763415210760,0.21727288,92051.0,92030.0,0.0234995]
[1763415210965,0.21727288,92051.0,92031.0,0.0234995]
[1763415211139,0.21727288,92051.0,92032.0,0.0234995]
[1763415211346,0.21726484,92054.0,92033.0,0.0234995]
[1763415211553,0.21727603,92049.0,92034.0,0.0234995]
[1763415211746,2.0,92053.0,92035.0,0.02350581]
[1763415211976,2.21726714,92053.0,92032.0,0.0078849]
[1763415212230,2.21726714,92053.0,92033.0,0.02350581]
[1763415212231,2.0,92052.0,92033.0,0.02350581]
[1763415212375,2.0,92053.0,92034.0,0.02350581]
[1763415212570,2.0,92053.0,92035.0,0.02350581]